bitfinex-derivatives/quotes_BTCF0:USTF0_20250207
["timestamp","ask_amount","ask_price","bid_price","bid_amount"]
[1738942794324,0.2029854,98485.0,98484.0,0.003]
[1738942794713,0.2029854,98485.0,98484.0,0.007]
[1738942794915,0.2030122,98472.0,98452.0,0.00714991]
[1738942795124,0.050747,98484.0,98446.0,0.2030651]
[1738942795125,0.5638452,98456.0,98446.0,0.2030651]
[1738942795309,0.5638452,98456.0,98447.0,0.2030627]
[1738942795619,0.3608,98456.0,98454.0,0.2030482]
[1738942796413,0.3658,98456.0,98454.0,0.2030482]
[1738942797017,0.005,98456.0,98454.0,0.2030482]
[1738942797614,0.013,98456.0,98454.0,0.2030482]
[1738942797815,0.008,98456.0,98454.0,0.2030482]
[1738942798015,0.009,98456.0,98454.0,0.2030482]
[1738942798521,0.001,98456.0,98455.0,0.00252355]
[1738942799323,0.008,98456.0,98455.0,0.20557075]
[1738942799923,0.009,98456.0,98455.0,0.21182799]
[1738942800823,0.00015236,98465.0,98455.0,0.00878079]
[1738942801025,0.14427966,98476.0,98475.0,0.2030059]
[1738942801421,0.1456504,98482.0,98481.0,0.2029936]
[1738942801609,0.1,98500.0,98491.0,0.202973]
[1738942801819,0.1,98500.0,98491.0,0.563773]
[1738942802222,0.1,98500.0,98491.0,0.57105148]
[1738942802519,0.1,98500.0,98499.0,0.2029565]
[1738942802722,0.8987,98518.0,98506.0,0.2029412]
[1738942803026,0.2029272,98514.0,98506.0,0.2029412]
[1738942803718,0.53846001,98518.0,98499.0,0.3608]
[1738942803925,0.1780103,98530.0,98511.0,0.3608]
[1738942804118,0.1780103,98530.0,98525.0,0.2029029]
[1738942804316,0.00015227,98528.0,98525.0,0.2029029]
[1738942805111,0.00015227,98528.0,98525.0,0.5637029]
[1738942805112,0.009,98526.0,98525.0,0.5637029]
[1738942805317,0.018,98526.0,98525.0,0.5637029]
[1738942805527,0.3608,98545.0,98538.0,0.2028761]
[1738942806023,0.1780103,98550.0,98538.0,0.2028761]
[1738942806225,0.3808628,98550.0,98538.0,0.2028761]
[1738942806627,0.00015227,98548.0,98538.0,0.2028761]
[1738942807131,0.00015227,98548.0,98538.0,0.2711561]
[1738942807419,0.20519399,98557.0,98549.0,0.2028528]
[1738942807625,0.40803219,98557.0,98549.0,0.2028528]
[1738942807821,0.40803219,98557.0,98550.0,0.2028506]
[1738942808243,0.20519399,98557.0,98544.0,0.06828]
[1738942808725,0.40803179,98557.0,98550.0,0.20285]
[1738942809022,0.2028741,98539.0,98530.0,0.0008]
[1738942809230,0.2028926,98530.0,98518.0,0.6488]
[1738942809417,0.2028926,98530.0,98519.0,0.06828]
[1738942810125,0.2028926,98530.0,98529.0,0.00741001]
[1738942810324,0.00015227,98539.0,98529.0,0.00015227]
[1738942810523,0.00015227,98539.0,98538.0,0.2028761]
[1738942811029,0.00015227,98539.0,98529.0,0.00015227]
[1738942811030,0.2028772,98538.0,98531.0,0.2028895]
[1738942811220,0.00015227,98539.0,98531.0,0.2028895]
[1738942811421,0.2028875,98533.0,98529.0,0.00015227]
[1738942811617,0.00015227,98539.0,98529.0,0.00115227]
[1738942811618,0.3608,98532.0,98529.0,0.00115227]
[1738942811830,0.2028917,98531.0,98529.0,0.00115227]
[1738942812023,0.3608,98532.0,98529.0,0.00115227]
[1738942812231,0.3608,98532.0,98530.0,0.2028911]
[1738942812527,0.00015227,98539.0,98537.0,0.2028773]
[1738942813321,0.00015227,98539.0,98531.0,0.002]
[1738942813626,0.3608,98537.0,98531.0,0.002]
[1738942813820,0.3608,98537.0,98531.0,0.2048897]
[1738942814020,0.2028878,98533.0,98530.0,0.004]
[1738942814415,0.3608,98537.0,98530.0,0.004]
[1738942814627,0.00015227,98539.0,98530.0,0.37407815]
[1738942814828,0.00015227,98539.0,98537.0,0.2028763]
[1738942815122,0.00015227,98539.0,98537.0,0.2088763]
[1738942815523,0.20302747,98539.0,98537.0,0.006]
[1738942815741,0.2028855,98534.0,98530.0,0.3618]
[1738942815929,0.00015227,98539.0,98531.0,0.2028905]
[1738942816120,0.20302717,98539.0,98531.0,0.2028905]
[1738942816322,0.20302717,98539.0,98530.0,0.3618]
[1738942816323,0.2028885,98532.0,98530.0,0.001]
[1738942816521,0.2028926,98530.0,98529.0,7e-08]
[1738942818727,0.2028926,98530.0,98529.0,0.00500007]
[1738942819031,0.2028823,98535.0,98531.0,0.2028892]
[1738942819226,0.2028823,98535.0,98529.0,0.00500007]
[1738942819227,0.00015227,98539.0,98538.0,0.202876]
[1738942819829,0.00015227,98539.0,98529.0,0.01000007]
[1738942820029,0.2028899,98532.0,98529.0,0.01000007]
[1738942820217,0.2028898,98532.0,98531.0,0.007]
[1738942820421,0.2028898,98532.0,98531.0,0.00696]
[1738942820626,0.20302677,98539.0,98531.0,0.00696]
[1738942820920,0.00015227,98539.0,98538.0,0.205876]
[1738942821126,0.3608,98559.0,98557.0,0.2028351]
[1738942821327,0.3608,98559.0,98556.0,0.2028376]
[1738942821526,0.5636338,98559.0,98549.0,0.5636521]
[1738942821728,0.2028338,98559.0,98553.0,0.2028444]
[1738942822135,0.3608,98568.0,98541.0,0.3015]
[1738942822339,0.00015227,98566.0,98563.0,0.2028246]
[1738942822524,0.00015227,98566.0,98562.0,0.3608]
[1738942822725,0.00015227,98566.0,98561.0,0.2028276]
[1738942823328,0.00752255,98564.0,98561.0,0.2028276]
[1738942823735,0.00752255,98564.0,98563.0,0.3608]
[1738942823934,0.01352255,98564.0,98563.0,0.5636246]
[1738942824235,0.01352255,98564.0,98563.0,0.3608]
[1738942824435,0.01352255,98564.0,98563.0,0.5636246]
[1738942824930,0.00752255,98564.0,98563.0,0.5636246]
[1738942825131,0.01352255,98564.0,98563.0,0.57361047]
[1738942825730,0.00015227,98566.0,98563.0,0.37078587]
[1738942826035,0.00015227,98566.0,98565.0,0.2028205]
[1738942827737,0.00152254,98593.0,98565.0,0.3]
[1738942827921,0.00152254,98593.0,98566.0,0.06808]
[1738942828126,0.00152254,98593.0,98578.0,0.2027925]
[1738942828325,0.00152254,98593.0,98591.0,0.2027656]
[1738942828934,0.00152254,98593.0,98585.0,0.3608]
[1738942829140,0.00152254,98593.0,98592.0,0.3608]
[1738942829434,0.00152254,98593.0,98591.0,0.2027663]
[1738942829833,0.00152254,98593.0,98592.0,0.3608]
[1738942830036,0.00552254,98593.0,98592.0,0.3608]
[1738942831230,0.202769,98590.0,98589.0,0.06804]
[1738942831433,0.00352254,98593.0,98589.0,0.06804]
[1738942831627,0.00352254,98593.0,98591.0,0.2027661]
[1738942831835,0.00352254,98593.0,98584.0,0.37014639]
[1738942832144,0.2027792,98585.0,98584.0,0.43818639]
[1738942832324,0.2027693,98590.0,98584.0,0.43818639]
[1738942832633,0.00352254,98593.0,98582.0,0.00015219]
[1738942832634,0.2027833,98583.0,98582.0,0.00015219]
[1738942833035,0.00152254,98593.0,98582.0,0.00015219]
[1738942833339,0.002,98590.0,98589.0,0.202771]
[1738942833737,0.00152254,98593.0,98584.0,0.3608]
[1738942833937,0.00152254,98593.0,98582.0,0.00015219]
[1738942834138,0.2027833,98584.0,98582.0,0.00015219]
[1738942834840,0.2027833,98584.0,98583.0,0.5635833]
[1738942835149,0.00604255,98593.0,98583.0,0.3608]
[1738942835446,0.00552254,98593.0,98592.0,0.2027648]
[1738942835633,0.20828524,98593.0,98592.0,0.2027648]
[1738942836036,0.00552254,98593.0,98592.0,0.2027648]
[1738942836236,0.00152254,98593.0,98592.0,0.2027648]
[1738942836550,0.00152254,98593.0,98592.0,0.5635648]
[1738942836744,0.00552254,98593.0,98592.0,0.5635648]
[1738942837841,0.00152254,98593.0,98592.0,0.57288982]
[1738942838042,0.00552254,98593.0,98592.0,0.57288982]
[1738942838265,0.004,98593.0,98592.0,0.57388982]
[1738942839546,0.1,98600.0,98599.0,0.2027503]
[1738942840147,0.1,98600.0,98593.0,0.2027612]
[1738942840338,0.2027538,98598.0,98592.0,0.37112502]
[1738942840747,0.102,98600.0,98592.0,0.00932502]
[1738942840952,0.102,98600.0,98582.0,0.36095219]
[1738942841244,0.2027781,98586.0,98585.0,0.2027785]
[1738942841544,0.102,98600.0,98585.0,0.2027785]
[1738942841845,0.102,98600.0,98582.0,0.00015219]
[1738942841846,0.102,98600.0,98599.0,0.2027503]
[1738942842240,0.1468138,98620.0,98599.0,0.2027503]
[1738942842241,0.1468138,98620.0,98619.0,0.2027092]
[1738942842549,0.1468138,98620.0,98619.0,0.5635092]
[1738942843756,0.2027091,98619.0,98613.0,0.5635209]
[1738942843944,0.1468138,98620.0,98614.0,0.06788]
[1738942844140,0.1468138,98620.0,98610.0,0.0001521]
[1738942844545,0.2027054,98621.0,98618.0,0.2027109]
[1738942844745,0.2027054,98621.0,98619.0,0.2027088]
[1738942844949,0.2027153,98616.0,98613.0,0.002]
[1738942845143,0.20271,98619.0,98617.0,0.2027127]
[1738942845344,0.2027194,98614.0,98613.0,0.002]
[1738942845949,0.00152156,98625.0,98613.0,0.002]
[1738942846147,0.00152156,98625.0,98624.0,0.2026988]
[1738942846350,0.2807,98653.0,98624.0,0.06788]
[1738942846555,0.2026362,98655.0,98643.0,0.5634597]
[1738942847049,0.2515,98659.0,98643.0,0.5634597]
[1738942847243,0.5778,98671.0,98643.0,0.5634597]
[1738942847456,0.57840001,98671.0,98650.0,0.2026452]
[1738942847857,0.202621,98662.0,98650.0,0.2026452]
[1738942848048,0.202621,98662.0,98657.0,0.2026299]
[1738942848251,0.57840001,98671.0,98647.0,0.06784]
[1738942848252,0.2026256,98660.0,98658.0,0.3608]
[1738942848554,0.2026256,98660.0,98658.0,0.5634283]
[1738942848858,0.202646,98650.0,98647.0,0.06784]
[1738942849060,0.3608,98664.0,98647.0,0.06784]
[1738942849260,0.3608,98664.0,98651.0,0.2026416]
[1738942849451,0.2026362,98655.0,98651.0,0.2026416]
[1738942850457,0.2026227,98661.0,98650.0,0.002]
[1738942850657,0.2026092,98668.0,98655.0,0.2026347]
[1738942850857,0.004,98664.0,98660.0,0.2026239]
[1738942851054,0.004,98664.0,98654.0,0.3608]
[1738942851361,0.2026349,98655.0,98654.0,0.3608]
[1738942851757,0.3608,98663.0,98645.0,0.3608]
[1738942852262,0.004,98664.0,98662.0,0.2026201]
[1738942852955,0.57840001,98671.0,98661.0,0.3608]
[1738942853156,0.5778,98671.0,98667.0,0.2026095]
[1738942853462,0.2026256,98661.0,98659.0,0.0001521]
[1738942853763,0.2026256,98661.0,98659.0,0.2027778]
[1738942854154,0.2026256,98661.0,98659.0,0.0001521]
[1738942854354,0.2026256,98661.0,98637.0,0.2026716]
[1738942854355,0.0506589,98655.0,98637.0,0.2026716]
[1738942854659,0.3608,98649.0,98635.0,0.06776]
[1738942854960,0.2026739,98636.0,98635.0,0.2704359]
[1738942855160,0.2026739,98636.0,98635.0,0.2026759]
[1738942855365,0.2026739,98636.0,98635.0,0.21191515]
[1738942855661,0.2026739,98636.0,98635.0,0.00923925]
[1738942855861,0.00015181,98645.0,98628.0,0.5634883]
[1738942856068,0.202678,98634.0,98633.0,0.01054452]
[1738942856261,0.202678,98634.0,98633.0,0.00152088]
[1738942857156,0.2026652,98641.0,98637.0,0.2026709]
[1738942857359,0.83566001,98644.0,98641.0,0.2026625]
[1738942857664,0.00015181,98645.0,98644.0,0.2026575]
[1738942858658,0.00015181,98645.0,98644.0,0.2119068]
[1738942859864,0.00015181,98645.0,98644.0,0.2169068]
[1738942860070,0.00015181,98645.0,98644.0,0.2199068]
[1738942860468,0.17579624,98663.0,98644.0,0.0172493]
[1738942860769,0.17579624,98663.0,98662.0,0.2026202]
[1738942861175,0.17579624,98663.0,98658.0,0.3608]
[1738942861377,0.2026227,98661.0,98658.0,0.3608]
[1738942861767,0.17579624,98663.0,98658.0,0.5634278]
[1738942862476,0.17579624,98663.0,98659.0,0.2026251]
[1738942862679,0.17979624,98663.0,98658.0,0.3608]
[1738942862867,0.38241464,98663.0,98662.0,0.2026201]
[1738942863069,0.2026184,98663.0,98658.0,0.3608]
[1738942863277,0.2066184,98663.0,98658.0,0.37010804]
[1738942863478,0.2066184,98663.0,98662.0,0.2026201]
[1738942863681,0.2026184,98663.0,98662.0,0.2026201]
[1738942863880,0.2056184,98663.0,98662.0,0.2026201]
[1738942864381,0.003,98663.0,98662.0,0.2026201]
[1738942865469,0.2477,98669.0,98658.0,0.37010804]
[1738942865675,0.3608,98678.0,98673.0,0.2025965]
[1738942865879,0.57382001,98679.0,98673.0,0.2025965]
[1738942866080,0.20411509,98675.0,98673.0,0.2025965]
[1738942866280,0.00152089,98675.0,98673.0,0.2025965]
[1738942866483,0.00152089,98675.0,98674.0,0.3608]
[1738942867474,0.30519399,98700.0,98674.0,0.36988518]
[1738942867674,0.30519399,98700.0,98699.0,0.5633433]
[1738942868183,0.30519399,98700.0,98699.0,0.2025433]
[1738942868380,0.1,98700.0,98699.0,0.2025433]
[1738942868777,0.13261702,98709.0,98708.0,0.2025247]
[1738942868974,0.13261702,98709.0,98708.0,0.5633247]
[1738942870285,0.23299908,98715.0,98708.0,0.3618]
[1738942870483,0.18937596,98715.0,98714.0,0.5633123]
[1738942870790,0.32284965,98724.0,98717.0,0.20245749]
[1738942871484,0.02308829,98722.0,98721.0,0.2024981]
[1738942871683,0.02308829,98722.0,98721.0,0.5632981]
[1738942872183,0.00151991,98749.0,98721.0,0.3608]
[1738942872382,0.20396251,98749.0,98745.0,0.2024481]
[1738942872573,0.2024465,98747.0,98739.0,0.3608]
[1738942872888,0.00151991,98749.0,98739.0,0.3608]
[1738942873191,0.2024515,98744.0,98739.0,0.3608]
[1738942873486,0.00151991,98749.0,98745.0,0.001]
[1738942873783,0.202447,98746.0,98745.0,0.001]
[1738942873979,0.00151991,98749.0,98745.0,0.001]
[1738942874189,0.00151991,98749.0,98748.0,0.5632429]
[1738942874584,0.00151991,98749.0,98748.0,0.3608]
[1738942874783,0.20396081,98749.0,98748.0,0.3608]
[1738942874985,0.00151991,98749.0,98743.0,0.202452]
[1738942875286,0.2024585,98741.0,98739.0,0.37623569]
[1738942875583,0.2024452,98747.0,98739.0,0.37523569]
[1738942875787,0.00151991,98749.0,98739.0,0.37523569]
[1738942875985,0.00151991,98749.0,98747.0,0.2024431]
[1738942876289,0.00151991,98749.0,98748.0,0.002]
[1738942877183,0.202451,98745.0,98743.0,0.001]
[1738942877776,0.00151991,98749.0,98748.0,0.202443]
[1738942878686,0.00151991,98749.0,98748.0,0.563243]
[1738942879094,0.2,98750.0,98748.0,0.566243]
[1738942879391,0.06833333,98750.0,98748.0,0.566243]
[1738942879588,0.06833333,98750.0,98749.0,0.3028]
[1738942880489,0.2023895,98775.0,98752.0,0.0506083]
[1738942880791,0.2023895,98775.0,98771.0,0.2023952]
[1738942881097,0.2023723,98783.0,98777.0,0.2023826]
[1738942881387,0.3608,98786.0,98770.0,0.5388103]
[1738942881588,0.3608,98786.0,98764.0,0.3608]
[1738942881897,0.202408,98765.0,98763.0,0.00015192]
[1738942882593,0.202408,98765.0,98763.0,0.20256372]
[1738942882800,0.202408,98765.0,98763.0,0.00015192]
[1738942882982,0.202408,98765.0,98764.0,0.001]
[1738942883181,0.202408,98765.0,98764.0,0.002]
[1738942883385,0.2024062,98766.0,98764.0,0.2044082]
[1738942883589,0.2024062,98766.0,98764.0,0.2034082]
[1738942883788,0.3608,98775.0,98764.0,0.001]
[1738942883789,0.202408,98765.0,98764.0,0.001]
[1738942884495,0.203408,98765.0,98764.0,0.20241]
[1738942884893,0.203408,98765.0,98763.0,0.00966228]
[1738942884894,0.00915529,98779.0,98763.0,0.00966228]
[1738942885095,0.001,98765.0,98764.0,0.20241]
[1738942885295,0.001,98765.0,98764.0,0.56321]
[1738942886001,0.2023464,98796.0,98787.0,0.2023629]
[1738942886200,0.1,98800.0,98787.0,0.2023629]
[1738942886495,0.6388103,98800.0,98783.0,0.3608]
[1738942886695,0.202369,98784.0,98783.0,0.3608]
[1738942886894,0.2023895,98774.0,98773.0,0.3608]
[1738942887905,0.20241,98764.0,98754.0,0.5632285]
[1738942888090,0.20241,98764.0,98763.0,0.00966228]
[1738942888994,0.56321,98764.0,98763.0,0.00015192]
[1738942889199,0.3608,98764.0,98736.0,0.3608]
[1738942889395,0.2024346,98752.0,98736.0,0.3608]
[1738942889792,0.2024346,98752.0,98742.0,0.2024539]
[1738942889993,0.2024346,98752.0,98733.0,0.2024721]
[1738942890300,0.2024812,98730.0,98729.0,0.2024817]
[1738942890497,0.0506124,98745.0,98726.0,0.00946774]
[1738942890498,0.2024843,98728.0,98726.0,0.00946774]
[1738942890699,0.3608,98734.0,98723.0,0.2024925]
[1738942890892,0.3077,98744.0,98729.0,0.2024811]
[1738942891096,0.3608,98735.0,98729.0,0.2024811]
[1738942891295,0.3608,98742.0,98722.0,0.3608]
[1738942891594,0.3608,98742.0,98733.0,0.2024734]
[1738942891797,0.202486,98727.0,98722.0,0.36095193]
[1738942891998,0.3608,98734.0,98722.0,0.36095193]
[1738942892194,0.00015193,98742.0,98741.0,0.2024571]
[1738942893402,0.00015193,98742.0,98741.0,0.5712571]
[1738942893999,0.00015193,98742.0,98741.0,0.01719722]
[1738942894513,0.00015193,98742.0,98741.0,0.21965432]
[1738942894703,0.00015193,98742.0,98741.0,0.58645432]
[1738942894903,0.00015193,98742.0,98741.0,0.57845432]
[1738942895094,0.00015193,98742.0,98741.0,0.58745432]
[1738942897500,0.8458,98768.0,98741.0,0.38499722]
[1738942897697,0.00151927,98772.0,98771.0,0.2023957]
[1738942899003,0.00015126,98781.0,98764.0,0.3608]
[1738942899197,0.00015126,98781.0,98776.0,0.2023843]
[1738942899909,0.00015126,98781.0,98769.0,0.2023989]
[1738942900402,0.00015126,98781.0,98778.0,0.2023811]
[1738942900601,0.00015126,98781.0,98779.0,0.202379]
[1738942901004,0.20252706,98781.0,98779.0,0.202379]
[1738942901607,0.00015126,98781.0,98779.0,0.202379]
[1738942902202,0.00015126,98781.0,98779.0,0.203379]
[1738942902908,0.00015126,98781.0,98774.0,0.00933174]
[1738942903095,0.00015126,98781.0,98779.0,0.001]
[1738942903296,0.00015126,98781.0,98779.0,0.203379]
[1738942903507,0.20252686,98781.0,98779.0,0.203379]
[1738942903806,0.2023916,98774.0,98772.0,0.36998715]
[1738942904000,0.0505943,98780.0,98762.0,0.36095193]
[1738942904199,0.3608,98775.0,98762.0,0.36095193]
[1738942904417,0.2024021,98768.0,98767.0,0.2024035]
[1738942904704,0.0505975,98774.0,98762.0,0.3702902]
[1738942904906,0.0505975,98774.0,98757.0,0.00151892]
[1738942904907,0.2024145,98762.0,98758.0,0.2024225]
[1738942905111,0.3608,98775.0,98761.0,0.3608]
[1738942905606,0.00015126,98781.0,98762.0,0.002]
[1738942905907,0.3608,98775.0,98762.0,0.002]
[1738942906103,0.2024121,98763.0,98762.0,0.00215185]
[1738942906303,0.2024121,98763.0,98762.0,0.00015185]
[1738942907505,0.2024121,98763.0,98762.0,0.00515185]
[1738942907810,0.1780103,98780.0,98762.0,0.00715185]
[1738942908014,0.202384,98777.0,98775.0,0.2023856]
[1738942908311,0.242,98779.0,98762.0,0.00715185]
[1738942908512,0.2023945,98772.0,98768.0,0.2024008]
[1738942908698,0.242,98779.0,98762.0,0.01315185]
[1738942908907,0.2023992,98770.0,98768.0,0.2024007]
[1738942909413,0.2023992,98770.0,98769.0,0.3608]
[1738942909610,0.242,98779.0,98778.0,0.2023814]
[1738942909809,0.242,98779.0,98778.0,0.5631814]
[1738942910105,0.34845917,98784.0,98780.0,0.2023773]
[1738942910305,0.14608897,98784.0,98780.0,0.2023773]
[1738942911613,0.1,98800.0,98778.0,0.37007169]
[1738942911614,0.36136001,98810.0,98778.0,0.37007169]
[1738942911800,0.2023288,98804.0,98797.0,0.3608]
[1738942912005,0.5631177,98810.0,98803.0,0.2023291]
[1738942912200,0.3608,98810.0,98797.0,0.3608]
[1738942912404,0.17738627,98811.0,98805.0,0.2023253]
[1738942912710,0.2023207,98808.0,98798.0,0.2023401]
[1738942913017,0.2023207,98808.0,98803.0,0.202329]
[1738942913199,0.2023207,98808.0,98798.0,0.00015185]
[1738942913200,0.17738627,98811.0,98806.0,0.2023221]
[1738942913812,0.17738627,98811.0,98798.0,0.00015185]
[1738942914012,0.202323,98807.0,98803.0,0.001]
[1738942914215,0.202325,98806.0,98803.0,0.001]
[1738942914614,0.2023273,98805.0,98803.0,0.001]
[1738942914812,0.2023218,98807.0,98806.0,0.001]
[1738942915118,0.5631218,98807.0,98806.0,0.001]
[1738942915302,0.2023382,98799.0,98798.0,0.00015185]
[1738942915506,0.2023607,98788.0,98787.0,0.00912089]
[1738942915705,0.2023607,98788.0,98780.0,0.2023764]
[1738942915907,0.2023656,98786.0,98780.0,0.2023764]
[1738942916214,0.3608,98792.0,98783.0,0.18097663]
[1738942916406,0.2023698,98784.0,98783.0,0.18097663]
[1738942917603,0.2023571,98790.0,98786.0,0.2023634]
[1738942918006,0.2023689,98784.0,98783.0,0.18797663]
[1738942918705,0.2023689,98784.0,98783.0,0.18297663]
[1738942918920,0.21168371,98784.0,98783.0,0.18297663]
[1738942919316,0.21168371,98784.0,98783.0,0.002]
[1738942919913,0.2023689,98784.0,98783.0,0.002]
[1738942920119,0.264,98787.0,98783.0,0.2043694]
[1738942920414,0.00052001,98788.0,98786.0,0.2023648]
[1738942920615,0.00015185,98793.0,98792.0,0.2023525]
[1738942920811,0.00015185,98793.0,98792.0,0.5631525]
[1738942922017,0.00015185,98793.0,98792.0,0.5661525]
[1738942922408,0.00015185,98793.0,98792.0,0.57550204]
[1738942922613,0.00115185,98793.0,98792.0,0.57850204]
[1738942923926,0.00923577,98826.0,98797.0,0.0505849]
[1738942924122,0.00923577,98826.0,98811.0,0.3608]
[1738942924422,0.2022982,98819.0,98792.0,0.37014954]
[1738942924631,0.2023176,98809.0,98806.0,0.2023227]
[1738942925027,0.2023209,98807.0,98805.0,0.3608]
[1738942925328,0.2023209,98807.0,98798.0,0.00015185]
[1738942925329,0.00015168,98817.0,98798.0,0.00015185]
[1738942925530,0.00015168,98817.0,98816.0,0.5631025]
[1738942926929,0.00015168,98817.0,98816.0,0.57248824]
[1738942928832,0.38119708,98850.0,98816.0,0.57248824]
[1738942928833,0.20412869,98850.0,98849.0,0.2022353]
[1738942929629,0.2627,98860.0,98858.0,0.2022156]
[1738942929934,0.2021971,98868.0,98858.0,0.3608]
[1738942930126,0.29941783,98872.0,98858.0,0.3608]
[1738942930325,0.00151783,98872.0,98867.0,0.3608]
[1738942930527,0.00151783,98872.0,98871.0,0.2021902]
[1738942930731,0.00151783,98872.0,98867.0,0.3608]
[1738942931241,0.00151783,98872.0,98870.0,0.2021907]
[1738942931532,0.00151783,98872.0,98869.0,0.2021924]
[1738942931734,0.39283002,98875.0,98871.0,0.3608]
[1738942932139,0.19064652,98875.0,98871.0,0.3608]
[1738942932325,0.19064652,98875.0,98872.0,0.2021882]
[1738942932525,0.19064652,98875.0,98871.0,0.3608]
[1738942932731,0.2021963,98868.0,98867.0,0.00931955]
[1738942932936,0.2022063,98864.0,98862.0,0.3608]
[1738942933138,0.2021955,98869.0,98863.0,0.2022066]
[1738942933336,0.2021955,98869.0,98862.0,0.3608]
[1738942933337,0.19064652,98875.0,98862.0,0.73097362]
[1738942933539,0.19064652,98875.0,98873.0,0.2021851]
[1738942933739,0.2021406,98896.0,98886.0,0.2021588]
[1738942934041,0.00151745,98897.0,98881.0,0.2021683]
[1738942934240,0.00151745,98897.0,98892.0,0.2021466]
[1738942934434,0.00151745,98897.0,98889.0,0.3608]
[1738942934636,0.00151745,98897.0,98896.0,0.2021391]
[1738942935042,0.00151745,98897.0,98889.0,0.3608]
[1738942935337,0.2021513,98890.0,98889.0,0.3608]
[1738942935538,0.00151745,98897.0,98889.0,0.3608]
[1738942936237,0.00151745,98897.0,98896.0,0.2021391]
[1738942936441,0.00151745,98897.0,98889.0,0.3608]
[1738942936642,0.2021504,98891.0,98889.0,0.36993135]
[1738942936836,0.00151745,98897.0,98889.0,0.36993135]
[1738942937436,0.00151745,98897.0,98890.0,0.2021498]
[1738942937637,0.2021518,98890.0,98889.0,0.36993135]
[1738942937837,0.2021518,98890.0,98889.0,0.00913135]
[1738942938038,0.2021518,98890.0,98883.0,0.2690046]
[1738942938039,0.20216,98886.0,98883.0,0.2690046]
[1738942938240,0.3608,98892.0,98883.0,0.00960376]
[1738942938446,0.2021681,98882.0,98881.0,0.00015169]
[1738942938643,0.5629681,98882.0,98881.0,0.00015169]
[1738942938839,0.2021681,98882.0,98881.0,0.00015169]
[1738942939034,0.2021681,98882.0,98881.0,9e-08]
[1738942940945,0.5021681,98882.0,98881.0,9e-08]
[1738942941750,0.5021681,98882.0,98881.0,1e-08]
[1738942942139,0.2021988,98867.0,98856.0,0.2022206]
[1738942942345,0.2021988,98867.0,98865.0,0.00962799]
[1738942943140,0.3608,98873.0,98865.0,0.00962799]
[1738942943439,0.54450001,98883.0,98865.0,0.00962799]
[1738942943647,0.2021831,98875.0,98873.0,0.2021847]
[1738942943834,0.2021989,98867.0,98865.0,0.00962799]
[1738942944240,0.2021989,98867.0,98866.0,0.00351715]
[1738942944440,0.2021989,98867.0,98866.0,0.20571825]
[1738942944641,0.3608,98872.0,98870.0,0.2021928]
[1738942945047,0.3608,98872.0,98866.0,0.00151715]
[1738942945048,0.00015106,98891.0,98889.0,0.2021521]
[1738942946740,0.00015106,98891.0,98890.0,0.3035]
[1738942947349,0.00115106,98891.0,98890.0,0.3035]
[1738942947551,0.1,98900.0,98891.0,0.2021499]
[1738942947747,0.1,98900.0,98896.0,0.5629397]
[1738942948447,0.14704574,98930.0,98896.0,0.3608]
[1738942948636,0.14704574,98930.0,98923.0,0.3608]
[1738942948839,0.2020775,98927.0,98923.0,0.3608]
[1738942949348,0.50784574,98930.0,98923.0,0.3608]
[1738942949540,0.14704574,98930.0,98929.0,0.2020722]
[1738942949744,0.2020817,98925.0,98923.0,0.36073299]
[1738942950349,0.2020817,98925.0,98917.0,0.00015169]
[1738942950950,0.2020685,98931.0,98923.0,0.3608]
[1738942951246,0.462253,98939.0,98923.0,0.3608]
[1738942951646,0.462253,98939.0,98932.0,0.2020645]
[1738942951944,0.462253,98939.0,98923.0,0.3608]
[1738942951945,0.3608,98938.0,98923.0,0.3608]
[1738942952151,0.2020814,98925.0,98923.0,0.3608]
[1738942952745,0.2020675,98932.0,98928.0,0.2020735]
[1738942952948,0.2020692,98931.0,98928.0,0.2020735]
[1738942953250,0.3608,98935.0,98923.0,0.3608]
[1738942953544,0.2020824,98924.0,98923.0,0.00963427]
[1738942953751,0.3608,98935.0,98917.0,0.00015169]
[1738942953951,0.2020918,98920.0,98917.0,0.00015169]
[1738942954251,0.2020918,98920.0,98917.0,0.00969689]
[1738942954441,0.2020918,98920.0,98917.0,0.00015169]
[1738942954637,0.2020764,98927.0,98923.0,0.2030839]
[1738942954845,0.2020686,98931.0,98927.0,0.2020745]
[1738942955042,0.2602,98939.0,98927.0,0.2020745]
[1738942955244,0.2020543,98938.0,98927.0,0.2020745]
[1738942955552,0.2020824,98924.0,98923.0,0.001]
[1738942956238,0.3608,98933.0,98917.0,0.00015169]
[1738942956444,0.2020756,98928.0,98923.0,0.2020839]
[1738942956640,0.3608,98925.0,98917.0,0.00015169]
[1738942956950,0.2021341,98899.0,98894.0,0.2021429]
[1738942957254,0.2021208,98906.0,98892.0,0.3608]
[1738942957545,0.2020945,98919.0,98902.0,0.2021269]
[1738942957852,0.2021114,98910.0,98902.0,0.2021255]
[1738942958044,0.2020922,98920.0,98906.0,0.2021191]
[1738942958242,0.2021128,98910.0,98906.0,0.2021191]
[1738942958441,0.311,98919.0,98903.0,0.3608]
[1738942958647,0.2021175,98907.0,98903.0,0.3608]
[1738942958840,0.3608,98913.0,98901.0,0.00015161]
[1738942959148,0.2021274,98902.0,98901.0,0.00015161]
[1738942959454,0.2021137,98909.0,98904.0,0.202123]
[1738942960446,0.254,98912.0,98905.0,0.2021203]
[1738942960648,0.254,98912.0,98901.0,0.00415161]
[1738942960838,0.2021266,98903.0,98901.0,0.00015161]
[1738942961443,0.254,98912.0,98901.0,0.00015161]
[1738942961647,0.4561077,98912.0,98904.0,0.3608]
[1738942961850,0.2021077,98912.0,98910.0,0.2021094]
[1738942962063,0.2020978,98917.0,98912.0,0.2021057]
[1738942962353,0.2020978,98917.0,98904.0,0.3608]
[1738942962354,0.2020978,98917.0,98913.0,0.2021041]
[1738942962741,0.36132001,98919.0,98917.0,0.2020958]
[1738942962957,0.3608,98919.0,98917.0,0.2020958]
[1738942963553,0.2020952,98918.0,98912.0,0.2021068]
[1738942963853,0.2021053,98913.0,98907.0,0.2021168]
[1738942964055,0.2021053,98913.0,98904.0,0.37022879]
[1738942964256,0.00015152,98920.0,98913.0,0.2021049]
[1738942964563,0.2020991,98916.0,98913.0,0.2021049]
[1738942964748,0.2020991,98916.0,98904.0,0.37022879]
[1738942965051,0.2021212,98905.0,98904.0,0.57235109]
[1738942965450,0.202109,98911.0,98909.0,0.2021128]
[1738942965750,0.00015152,98920.0,98904.0,0.37022879]
[1738942965751,0.2021212,98905.0,98904.0,0.37022879]